fUSD/lending_fUSD_20250415
["ID","MTS","AMOUNT","RATE_DAILY","PERIOD"]
[358070814,1744687846902,-2047.0,0.00017897,2]
[358070815,1744687846911,-1903.0,0.00017898,2]
[358070816,1744687846920,-272079.93219406,0.00017898,2]
[358070817,1744687846929,-786.59932277,0.00017898,2]
[358070818,1744687846939,-435732.2477298,0.00017898,2]
[358070819,1744687848994,-814.98980894,0.00017897,2]
[358070820,1744687849058,-513.01019106,0.00017897,2]
[358070821,1744687849067,-20763.00480094,0.00017898,2]
[358070822,1744687849079,-1584.58455959,0.00017898,2]
[358070823,1744687849091,-1086.1368,0.00017898,2]
[358070824,1744687849102,-2740.76365778,0.00017898,2]
[358070825,1744687867993,3724.502008,7.945e-05,2]
[358070826,1744688246744,176.86,0.00017482,2]
[358070827,1744688299731,-443.83217837,0.00017552,2]
[358070828,1744688305702,-145.35580481,0.00017552,2]
[358070829,1744688305728,-21.47637356,0.00017552,2]
[358070830,1744688312276,910.59,0.00016903,2]
[358070831,1744688312338,910.59,0.00016908,2]
[358070832,1744688312514,910.59,0.00016912,2]
[358070833,1744688312652,910.59,0.00016917,2]
[358070834,1744688312829,910.59,0.00016921,2]
[358070835,1744688313054,910.59,0.00016926,2]
[358070836,1744688313472,910.59,0.0001693,2]
[358070837,1744688313905,910.59,0.00016934,2]
[358070838,1744688314130,910.59,0.00016939,2]
[358070839,1744688314557,910.59,0.00016943,2]
[358070840,1744688314780,910.59,0.00016948,2]
[358070841,1744688314975,910.59,0.00016952,2]
[358070842,1744688315189,910.59,0.00016957,2]
[358070843,1744688315433,910.59,0.00016961,2]
[358070844,1744688315545,-172.89654611,0.00017552,2]
[358070845,1744688315666,910.59,0.00016965,2]
[358070846,1744688316087,910.59,0.0001697,2]
[358070847,1744688316299,910.59,0.00016974,2]
[358070848,1744688316523,910.59,0.00016979,2]
[358070849,1744688316745,910.59,0.00016983,2]
[358070850,1744688316964,910.59,0.00016988,2]
[358070851,1744688376759,150.41149738,0.00016903,2]
[358070852,1744688377835,188.94,0.00016876,2]
[358070853,1744688382730,430.24,0.00016876,2]
[358070855,1744688446108,150.0,0.00017502,2]
[358070856,1744688510301,23900.0,0.00016856,2]
[358070858,1744688536465,1000.0,0.00016856,2]
[358070859,1744688548877,255.0,0.000249,32]
[358070860,1744688587786,556.2,0.00014938,2]
[358070861,1744688587990,556.2,0.00017202,2]
[358070862,1744688597671,1000.0,0.00025,30]
[358070863,1744688600431,1000.0,0.00025,30]
[358070864,1744688648694,1000.0,0.000178,3]
[358070865,1744688649269,1000.0,0.000178,3]
[358070866,1744688697081,1000.0,0.000178,3]
[358070867,1744688826025,5135.36,0.00016874,2]
[358070868,1744688827652,-160.27127552,0.00017552,2]
[358070869,1744688846524,255.0,0.000249,32]
[358070870,1744688849509,-89.18798318,0.00017552,2]
[358070871,1744688849533,-85.3593641,0.00017561,2]
[358070874,1744688945843,250.0,0.00016806,2]
[358070875,1744689002880,2000.0,0.0002,4]
[358070876,1744689004726,176.92,0.0001681,2]
[358070878,1744689031954,-174.54734728,0.00017662,2]
[358070879,1744689031964,-174.54734728,0.00017697,2]
[358070880,1744689031974,-362.8686698,0.00017762,2]
[358070881,1744689031984,-269.1254,0.00017763,2]
[358070882,1744689031994,-1868.3494,0.00017763,2]
[358070883,1744689032003,-214.2345,0.00017784,2]
[358070884,1744689032013,-300.0,0.00017789,2]
[358070885,1744689032023,-3382.21189664,0.0001779,2]
[358070886,1744689032033,-550.0,0.00017795,2]
[358070887,1744689032043,-172.81483386,0.00017795,2]
[358070888,1744689032052,-545.3732,0.00017796,2]
[358070889,1744689032062,-8227.6694,0.00017796,2]
[358070890,1744689032071,-2082.2941,0.00017796,2]
[358070891,1744689032080,-3082.7502,0.00017796,2]
[358070892,1744689032090,-7519.9623,0.00017796,2]
[358070893,1744689032100,-1618.8484,0.00017796,2]
[358070894,1744689032110,-670.471,0.00017796,2]
[358070895,1744689032120,-1821.544,0.00017796,2]
[358070896,1744689032129,-25522.4404273,0.00017796,2]
[358070897,1744689032141,-13453.2619727,0.00017796,2]
[358070898,1744689032152,-5450.9327918,0.00017796,2]
[358070899,1744689032161,-3011.73649522,0.00017796,2]
[358070900,1744689032174,-2439.19629651,0.00017796,2]
[358070901,1744689032184,-5450.93279173,0.00017796,2]
[358070902,1744689032194,-104.71841177,0.00017797,2]
[358070903,1744689032211,-5346.21437996,0.00017797,2]
[358070904,1744689032221,-5450.93279173,0.00017797,2]
[358070905,1744689032231,-2178.6348,0.00017797,2]
[358070906,1744689032240,-927.4903,0.00017797,2]
[358070907,1744689032250,-1723.33121487,0.00017797,2]
[358070908,1744689032259,-185.15886454,0.00017797,2]
[358070909,1744689032269,-1723.33121483,0.00017797,2]
[358070911,1744689032278,-5450.93279173,0.00017797,2]
[358070912,1744689032288,-1723.33121483,0.00017797,2]
[358070914,1744689032297,-1723.33121483,0.00017797,2]
[358070916,1744689032307,-5450.93279173,0.00017797,2]
[358070917,1744689032316,-1723.33121483,0.00017797,2]
[358070918,1744689032325,-1723.33121483,0.00017798,2]
[358070919,1744689032334,-480.51312129,0.00017798,2]
[358070920,1744689032346,-663.48309784,0.00017798,2]
[358070921,1744689032362,-4306.9365726,0.00017798,2]
[358070922,1744689032371,-1723.33121483,0.00017798,2]
[358070923,1744689032381,-1723.33121483,0.00017798,2]
[358070924,1744689032391,-5450.93279173,0.00017798,2]
[358070925,1744689032401,-1723.33121483,0.00017798,2]
[358070926,1744689032410,-151.96455846,0.00017798,2]
[358070927,1744689032419,-168.82619153,0.00017798,2]
[358070928,1744689032429,-1723.33121483,0.00017798,2]
[358070929,1744689032439,-1459.34125564,0.00017798,2]
[358070936,1744689038030,-3991.59153609,0.00017798,2]
[358070938,1744689038040,-185.15886454,0.00017798,2]
[358070940,1744689038050,-2646.39786804,0.00017798,2]
[358070942,1744689038060,-1000.0,0.000178,2]
[358070943,1744689038070,-1000.0,0.000178,2]
[358070944,1744689038081,-1000.0,0.000178,2]
[358070945,1744689038091,-1000.0,0.000178,2]
[358070946,1744689038101,-1067.0,0.000178,2]
[358070947,1744689038111,-1000.0,0.000178,2]
[358070948,1744689038121,-1000.0,0.000178,2]
[358070949,1744689038130,-1228.0,0.000178,2]
[358070950,1744689038140,-1000.0,0.000178,2]
[358070951,1744689038150,-1000.0,0.000178,2]
[358070952,1744689038159,-1001.0,0.000178,2]
[358070953,1744689038168,-1836.0,0.000178,2]
[358070954,1744689038178,-160.34,0.00017804,2]
[358070955,1744689038188,-377.0,0.00017808,2]
[358070956,1744689038197,-35741.71056024,0.00017814,2]
[358070957,1744689038207,-500.0,0.00017836,2]
[358070958,1744689038216,-160.34,0.00017853,2]
[358070959,1744689038226,-160.34,0.00017863,2]
[358070960,1744689038235,-226.6,0.00017863,2]
[358070961,1744689038245,-412.0,0.00017863,2]
[358070962,1744689038255,-42775.0,0.00017863,2]
[358070963,1744689038264,-504.48543619,0.00017873,2]
[358070964,1744689038274,-183.48201923,0.00017873,2]
[358070965,1744689038283,-162.50554832,0.00017873,2]
[358070966,1744689038293,-181.72706975,0.00017873,2]
[358070967,1744689038304,-500.0,0.00017873,2]
[358070968,1744689038313,-450.40369245,0.00017873,2]
[358070969,1744689038322,-156.25879839,0.00017873,2]
[358070970,1744689038331,-410.47466011,0.00017873,2]
[358070971,1744689038340,-161.484357,0.00017873,2]
[358070972,1744689038350,-161.01720414,0.00017873,2]
[358070973,1744689038361,-280.80256821,0.00017873,2]
[358070974,1744689038370,-153.99305948,0.00017873,2]
[358070975,1744689038378,-153.26720533,0.00017873,2]
[358070976,1744689038388,-319.93120252,0.00017873,2]
[358070977,1744689038397,-507.08460579,0.00017873,2]
[358070978,1744689038407,-160.34,0.00017884,2]
[358070979,1744689038417,-2659.2747542,0.00017884,2]
[358070980,1744689038427,-3052.0,0.00017884,2]
[358070981,1744689038437,-500.0,0.00017884,2]
[358070982,1744689038446,-500.0,0.00017884,2]
[358070983,1744689038456,-150.0,0.00017884,2]
[358070984,1744689038466,-150.0,0.00017884,2]
[358070985,1744689038477,-2504.7584952,0.00017884,2]
[358070986,1744689038487,-439.0,0.00017884,2]
[358070987,1744689038497,-500.0,0.00017884,2]
[358070988,1744689038507,-171.62899072,0.00017884,2]
[358070989,1744689038516,-809.665381,0.00017884,2]
[358070990,1744689038528,-160.34,0.00017885,2]
[358070991,1744689038538,-160.34,0.00017885,2]
[358070992,1744689038548,-160.34,0.00017886,2]
[358070993,1744689038557,-160.34,0.00017886,2]
[358070994,1744689038566,-160.34,0.00017886,2]
[358070995,1744689038575,-2659.2747542,0.00017886,2]
[358070996,1744689038584,-2770.1247634,0.00017886,2]
[358070997,1744689038594,-893.9995719,0.00017886,2]
[358070998,1744689038603,-500.0,0.00017887,2]
[358070999,1744689038614,-150.0,0.00017887,2]
[358071000,1744689038625,-162.380719,0.00017887,2]
[358071001,1744689038637,-502.0,0.0001789,2]
[358071002,1744689038647,-500.0,0.00017894,2]
[358071003,1744689038658,-500.0,0.00017894,2]
[358071004,1744689038667,-500.0,0.00017894,2]
[358071006,1744689038677,-500.0,0.00017894,2]
[358071008,1744689038685,-500.0,0.00017894,2]
[358071010,1744689038694,-500.0,0.00017894,2]
[358071012,1744689038703,-500.0,0.00017894,2]
[358071014,1744689038712,-160.219155,0.00017894,2]
[358071016,1744689038722,-500.0,0.00017894,2]
[358071018,1744689038731,-500.0,0.00017894,2]
[358071019,1744689038741,-500.0,0.00017894,2]
[358071020,1744689038750,-471.80297065,0.00017894,2]
[358071021,1744689038759,-1248.304569,0.00017894,2]
[358071022,1744689038768,-1248.304569,0.00017894,2]
[358071023,1744689038779,-500.0,0.00017894,2]
[358071024,1744689038788,-499.93558455,0.00017894,2]
[358071025,1744689038798,-168.882586,0.00017894,2]
[358071026,1744689038808,-523.96289775,0.00017894,2]
[358071027,1744689038817,-586.22055697,0.00017894,2]
[358071028,1744689038827,-500.0,0.00017894,2]
[358071029,1744689038836,-500.0,0.00017895,2]
[358071030,1744689038846,-513.07080944,0.00017895,2]
[358071031,1744689038855,-500.0,0.00017895,2]
[358071032,1744689038865,-500.0,0.00017895,2]
[358071033,1744689038875,-500.0,0.00017895,2]
[358071034,1744689038888,-516.42659789,0.00017895,2]
[358071035,1744689038897,-519.50842793,0.00017895,2]
[358071036,1744689038906,-508.48628231,0.00017895,2]
[358071037,1744689038915,-500.0,0.00017895,2]
[358071038,1744689038926,-387.342,0.00017895,2]
[358071039,1744689038935,-510.74699165,0.00017895,2]
[358071040,1744689038944,-500.0,0.00017895,2]
[358071041,1744689038953,-500.50996824,0.00017895,2]
[358071042,1744689038963,-509.45987108,0.00017895,2]
[358071043,1744689038973,-500.0,0.00017895,2]
[358071044,1744689038981,-629.11418885,0.00017895,2]
[358071045,1744689038990,-500.0,0.00017895,2]
[358071046,1744689038999,-500.0,0.00017895,2]
[358071047,1744689039009,-200.49400343,0.00017895,2]
[358071048,1744689039018,-500.0,0.00017895,2]
[358071049,1744689039030,-500.0,0.00017895,2]
[358071050,1744689039039,-500.0,0.00017895,2]
[358071051,1744689039048,-400.0,0.00017895,2]
[358071052,1744689039058,-500.0,0.00017895,2]
[358071053,1744689039067,-500.0,0.00017895,2]
[358071054,1744689039075,-500.0,0.00017895,2]
[358071055,1744689039085,-500.0,0.00017895,2]
[358071056,1744689039094,-500.0,0.00017895,2]
[358071057,1744689039103,-500.0,0.00017895,2]
[358071058,1744689039112,-500.0,0.00017895,2]
[358071059,1744689039121,-500.0,0.00017895,2]
[358071060,1744689039130,-500.0,0.00017895,2]
[358071061,1744689039139,-500.0,0.00017895,2]
[358071062,1744689039148,-500.0,0.00017895,2]
[358071063,1744689039156,-297.17772037,0.00017895,2]
[358071064,1744689039165,-500.000001,0.00017895,2]
[358071065,1744689039175,-500.0,0.00017895,2]
[358071066,1744689039184,-500.0,0.00017895,2]
[358071067,1744689039193,-500.0,0.00017895,2]
[358071068,1744689039202,-506.49131522,0.00017895,2]
[358071069,1744689039211,-500.0,0.00017895,2]
[358071070,1744689039220,-258.1125579,0.00017895,2]
[358071071,1744689039229,-500.0,0.00017895,2]
[358071072,1744689039239,-500.0,0.00017895,2]
[358071073,1744689039247,-500.0,0.00017895,2]
[358071074,1744689039256,-8954.13,0.00017895,2]
[358071075,1744689039265,-500.0,0.00017895,2]
[358071076,1744689039276,-500.0,0.00017895,2]
[358071077,1744689039454,-500.0,0.00017895,2]
[358071078,1744689039465,-500.0,0.00017895,2]
[358071079,1744689039475,-500.0,0.00017895,2]
[358071080,1744689039485,-500.0,0.00017895,2]
[358071081,1744689039495,-500.0,0.00017895,2]
[358071082,1744689039505,-498.00508997,0.00017895,2]
[358071083,1744689039514,-500.0,0.00017895,2]
[358071084,1744689039525,-500.0,0.00017895,2]
[358071085,1744689039535,-500.0,0.00017895,2]
[358071086,1744689039544,-500.0,0.00017895,2]
[358071087,1744689039554,-500.0,0.00017895,2]
[358071088,1744689039564,-500.0,0.00017895,2]
[358071089,1744689039574,-506.07910658,0.00017895,2]
[358071090,1744689039585,-500.0,0.00017895,2]
[358071091,1744689039595,-500.0,0.00017895,2]
[358071092,1744689039605,-500.0,0.00017895,2]
[358071093,1744689039614,-500.0,0.00017895,2]
[358071094,1744689039624,-553.07844838,0.00017895,2]
[358071095,1744689039634,-561.86,0.00017895,2]
[358071096,1744689039643,-500.0,0.00017895,2]
[358071097,1744689039653,-500.0,0.00017895,2]
[358071098,1744689039662,-518.80086195,0.00017895,2]
[358071099,1744689039672,-500.0,0.00017895,2]
[358071100,1744689039681,-500.0,0.00017895,2]
[358071101,1744689039692,-500.0,0.00017895,2]
[358071102,1744689039701,-500.0,0.00017895,2]
[358071103,1744689039711,-644.28197626,0.00017895,2]
[358071104,1744689039721,-500.0,0.00017895,2]
[358071105,1744689039730,-500.0,0.00017895,2]
[358071106,1744689039739,-544.78,0.00017895,2]
[358071107,1744689039749,-500.0,0.00017895,2]
[358071108,1744689039759,-514.42412124,0.00017895,2]
[358071109,1744689039768,-500.0,0.00017895,2]
[358071110,1744689039778,-514.38896866,0.00017895,2]
[358071111,1744689039788,-1648.49,0.00017895,2]
[358071112,1744689039797,-500.0,0.00017895,2]
[358071113,1744689039808,-500.0,0.00017895,2]
[358071114,1744689039818,-500.0,0.00017895,2]
[358071116,1744689039828,-500.0,0.00017895,2]
[358071117,1744689039837,-500.0,0.00017895,2]
[358071118,1744689039847,-930.91,0.00017895,2]
[358071119,1744689039856,-500.0,0.00017895,2]
[358071120,1744689039866,-535.42283788,0.00017895,2]
[358071122,1744689039877,-500.0,0.00017895,2]
[358071124,1744689039889,-500.0,0.00017895,2]
[358071126,1744689039899,-500.0,0.00017895,2]
[358071128,1744689039909,-500.0,0.00017895,2]
[358071130,1744689039918,-500.0,0.00017895,2]
[358071132,1744689039930,-518.57069854,0.00017895,2]
[358071134,1744689039939,-238.67354013,0.00017895,2]
[358071136,1744689039950,-500.0,0.00017895,2]
[358071138,1744689039960,-500.0,0.00017895,2]
[358071140,1744689039970,-500.0,0.00017895,2]
[358071142,1744689039979,-500.0,0.00017895,2]
[358071144,1744689039989,-557.10593138,0.00017895,2]
[358071146,1744689039999,-500.0,0.00017895,2]
[358071148,1744689040008,-500.0,0.00017895,2]
[358071151,1744689040018,-498.13910285,0.00017896,2]
[358071153,1744689040028,-500.0,0.00017896,2]
[358071155,1744689040038,-520.61880361,0.00017896,2]
[358071157,1744689040048,-522.60325126,0.00017896,2]
[358071159,1744689040057,-500.0,0.00017896,2]
[358071161,1744689040066,-500.0,0.00017896,2]
[358071163,1744689040076,-500.0,0.00017896,2]
[358071165,1744689040085,-526.77417563,0.00017896,2]
[358071167,1744689040094,-496.33427459,0.00017896,2]
[358071169,1744689040104,-521.95411516,0.00017896,2]
[358071171,1744689040114,-527.77619135,0.00017896,2]
[358071172,1744689040124,-509.53163894,0.00017896,2]
[358071174,1744689040134,-594.17581326,0.00017896,2]
[358071176,1744689040143,-513.28104484,0.00017896,2]
[358071177,1744689040153,-522.29726856,0.00017896,2]
[358071179,1744689040163,-534.64694181,0.00017896,2]
[358071180,1744689040172,-500.0,0.00017896,2]
[358071182,1744689040182,-500.0,0.00017896,2]
[358071184,1744689040192,-529.16106802,0.00017896,2]
[358071185,1744689040202,-535.46742054,0.00017896,2]
[358071187,1744689040213,-517.29040362,0.00017896,2]
[358071188,1744689040223,-487.7544832,0.00017896,2]
[358071190,1744689040233,-523.24823332,0.00017896,2]
[358071192,1744689040243,-500.0,0.00017896,2]
[358071193,1744689040252,-500.0,0.00017896,2]
[358071195,1744689040262,-507.51483558,0.00017896,2]
[358071196,1744689040271,-505.77665128,0.00017896,2]
[358071198,1744689040281,-500.0,0.00017896,2]
[358071199,1744689040290,-500.0,0.00017896,2]
[358071201,1744689040300,-500.0,0.00017896,2]
[358071203,1744689040309,-500.0,0.00017896,2]
[358071204,1744689040319,-641.82031171,0.00017896,2]
[358071206,1744689040328,-545.8933879,0.00017896,2]
[358071208,1744689040338,-500.0,0.00017896,2]
[358071209,1744689040349,-593.66709112,0.00017896,2]
[358071211,1744689040359,-194.45433449,0.00017896,2]
[358071213,1744689040370,-500.0,0.00017896,2]
[358071214,1744689040379,-500.0,0.00017896,2]
[358071216,1744689040389,-500.0,0.00017896,2]
[358071218,1744689040399,-639.22744867,0.00017896,2]
[358071219,1744689040410,-500.0,0.00017896,2]
[358071221,1744689040419,-500.0,0.00017896,2]
[358071223,1744689040429,-500.0,0.00017896,2]
[358071224,1744689040438,-500.0,0.00017896,2]
[358071226,1744689040448,-500.0,0.00017896,2]
[358071228,1744689040458,-500.0,0.00017896,2]
[358071229,1744689040468,-500.0,0.00017896,2]
[358071231,1744689040478,-570.51779091,0.00017896,2]
[358071233,1744689040489,-500.0,0.00017896,2]
[358071234,1744689040498,-500.0,0.00017896,2]
[358071236,1744689040508,-500.0,0.00017896,2]
[358071238,1744689040518,-500.0,0.00017896,2]
[358071239,1744689040528,-500.0,0.00017896,2]
[358071241,1744689040538,-500.0,0.00017896,2]
[358071243,1744689040548,-500.0,0.00017896,2]
[358071245,1744689040558,-500.0,0.00017896,2]
[358071247,1744689040568,-500.0,0.00017896,2]
[358071248,1744689040578,-500.0,0.00017896,2]
[358071250,1744689040588,-500.0,0.00017896,2]
[358071252,1744689040598,-500.0,0.00017896,2]
[358071254,1744689040608,-500.0,0.00017896,2]
[358071255,1744689040618,-500.0,0.00017896,2]
[358071257,1744689040628,-500.0,0.00017896,2]
[358071259,1744689040638,-563.25642255,0.00017896,2]
[358071260,1744689040647,-500.0,0.00017896,2]
[358071261,1744689040657,-500.0,0.00017896,2]
[358071262,1744689040667,-500.0,0.00017896,2]
[358071263,1744689040677,-500.0,0.00017896,2]
[358071264,1744689040687,-500.0,0.00017896,2]
[358071265,1744689040697,-346.76157412,0.00017896,2]
[358071267,1744689040707,-500.0,0.00017896,2]
[358071269,1744689040717,-500.0,0.00017896,2]
[358071271,1744689040726,-500.0,0.00017896,2]
[358071273,1744689040736,-500.0,0.00017896,2]
[358071275,1744689040746,-500.0,0.00017896,2]
[358071277,1744689040755,-500.0,0.00017896,2]
[358071279,1744689040765,-500.0,0.00017896,2]
[358071281,1744689040778,-500.0,0.00017896,2]
[358071283,1744689040787,-400.51392281,0.00017896,2]
[358071285,1744689040797,-500.0,0.00017896,2]
[358071287,1744689040806,-543.32015845,0.00017896,2]
[358071289,1744689040816,-500.0,0.00017896,2]
[358071291,1744689040826,-500.0,0.00017896,2]
[358071293,1744689040836,-500.0,0.00017896,2]
[358071295,1744689040845,-500.0,0.00017896,2]
[358071297,1744689040855,-500.0,0.00017896,2]
[358071299,1744689040866,-217.20616563,0.00017896,2]
[358071301,1744689040877,-500.0,0.00017896,2]
[358071303,1744689040888,-500.0,0.00017896,2]
[358071305,1744689040897,-500.0,0.00017896,2]
[358071307,1744689040907,-579.09015654,0.00017896,2]
[358071309,1744689040918,-500.0,0.00017896,2]
[358071311,1744689040928,-500.0,0.00017896,2]
[358071313,1744689040938,-500.0,0.00017896,2]
[358071316,1744689040949,-500.0,0.00017896,2]
[358071318,1744689040959,-500.0,0.00017896,2]
[358071319,1744689040968,-500.0,0.00017896,2]
[358071321,1744689040978,-505.3451314,0.00017896,2]
[358071323,1744689040987,-500.0,0.00017896,2]
[358071325,1744689040997,-500.0,0.00017896,2]
[358071328,1744689041008,-500.0,0.00017896,2]
[358071330,1744689041017,-500.0,0.00017896,2]
[358071332,1744689041028,-500.0,0.00017896,2]
[358071334,1744689041037,-500.0,0.00017896,2]
[358071336,1744689041047,-500.0,0.00017896,2]
[358071338,1744689041056,-545.42474336,0.00017896,2]
[358071340,1744689041067,-500.0,0.00017896,2]
[358071342,1744689041076,-500.0,0.00017896,2]
[358071344,1744689041085,-500.0,0.00017896,2]
[358071346,1744689041095,-500.0,0.00017896,2]
[358071348,1744689041105,-500.0,0.00017896,2]
[358071350,1744689041115,-539.59161975,0.00017896,2]
[358071352,1744689041124,-500.0,0.00017896,2]
[358071354,1744689041133,-500.0,0.00017896,2]
[358071356,1744689041143,-500.0,0.00017896,2]
[358071357,1744689041153,-500.0,0.00017896,2]
[358071359,1744689041162,-500.0,0.00017896,2]
[358071361,1744689041171,-184.94376322,0.00017896,2]
[358071364,1744689041188,-315.05623678,0.00017896,2]
[358071366,1744689041197,-500.0,0.00017896,2]
[358071368,1744689041206,-500.0,0.00017896,2]
[358071370,1744689041216,-541.49473023,0.00017896,2]
[358071372,1744689041227,-500.0,0.00017896,2]
[358071374,1744689041236,-500.0,0.00017896,2]
[358071376,1744689041246,-500.0,0.00017896,2]
[358071378,1744689041255,-500.0,0.00017896,2]
[358071380,1744689041266,-500.0,0.00017896,2]
[358071382,1744689041276,-500.0,0.00017896,2]
[358071384,1744689041286,-500.0,0.00017896,2]
[358071386,1744689041295,-500.0,0.00017896,2]
[358071388,1744689041304,-500.0,0.00017896,2]
[358071390,1744689041314,-500.0,0.00017896,2]
[358071392,1744689041323,-500.0,0.00017896,2]
[358071394,1744689041333,-500.0,0.00017896,2]
[358071396,1744689041343,-500.0,0.00017896,2]
[358071398,1744689041352,-500.0,0.00017896,2]
[358071400,1744689041362,-500.0,0.00017896,2]
[358071402,1744689041371,-500.0,0.00017896,2]
[358071404,1744689041380,-500.0,0.00017896,2]
[358071406,1744689041389,-500.0,0.00017896,2]
[358071408,1744689041399,-500.0,0.00017896,2]
[358071410,1744689041408,-500.0,0.00017896,2]
[358071412,1744689041418,-353.64181835,0.00017896,2]
[358071414,1744689041427,-500.0,0.00017896,2]
[358071416,1744689041439,-500.0,0.00017896,2]
[358071418,1744689041448,-500.0,0.00017896,2]
[358071420,1744689041458,-500.0,0.00017896,2]
[358071422,1744689041467,-500.0,0.00017896,2]
[358071424,1744689041477,-500.0,0.00017896,2]
[358071426,1744689041486,-500.0,0.00017896,2]
[358071428,1744689041495,-8954.13,0.00017896,2]
[358071431,1744689041506,-500.0,0.00017896,2]
[358071433,1744689041516,-500.0,0.00017896,2]
[358071434,1744689041525,-500.0,0.00017896,2]
[358071436,1744689041535,-500.0,0.00017896,2]
[358071438,1744689041545,-500.0,0.00017896,2]
[358071440,1744689041555,-500.0,0.00017896,2]
[358071442,1744689041564,-614.02,0.00017896,2]
[358071443,1744689041573,-500.0,0.00017896,2]
[358071444,1744689041583,-500.0,0.00017896,2]
[358071445,1744689041592,-500.0,0.00017896,2]
[358071447,1744689041602,-500.0,0.00017896,2]
[358071449,1744689041611,-500.0,0.00017896,2]
[358071451,1744689041621,-500.0,0.00017896,2]
[358071453,1744689041630,-500.0,0.00017896,2]
[358071455,1744689041640,-500.0,0.00017896,2]
[358071456,1744689041649,-500.0,0.00017896,2]
[358071458,1744689041659,-500.0,0.00017896,2]
[358071460,1744689041668,-500.0,0.00017896,2]
[358071462,1744689041677,-267.45,0.00017896,2]
[358071464,1744689041687,-500.0,0.00017896,2]
[358071466,1744689041696,-500.0,0.00017896,2]
[358071468,1744689041705,-500.0,0.00017896,2]
[358071470,1744689041715,-500.0,0.00017896,2]
[358071472,1744689041724,-500.0,0.00017896,2]
[358071475,1744689041734,-156.984525,0.00017896,2]
[358071477,1744689041744,-561.86,0.00017896,2]
[358071479,1744689041753,-500.0,0.00017896,2]
[358071481,1744689041763,-500.0,0.00017896,2]
[358071482,1744689041772,-525.62202961,0.00017896,2]
[358071484,1744689041781,-500.0,0.00017896,2]
[358071486,1744689041791,-500.0,0.00017896,2]
[358071488,1744689041801,-500.0,0.00017896,2]
[358071490,1744689041810,-500.0,0.00017896,2]
[358071492,1744689041819,-500.0,0.00017896,2]
[358071494,1744689041829,-500.0,0.00017896,2]
[358071496,1744689041838,-427.96461361,0.00017896,2]
[358071499,1744689041851,-72.03538639,0.00017896,2]
[358071500,1744689041861,-500.0,0.00017896,2]
[358071502,1744689041871,-500.0,0.00017896,2]
[358071504,1744689041882,-500.0,0.00017896,2]
[358071510,1744689041930,-500.0,0.00017896,2]
[358071512,1744689041940,-500.0,0.00017896,2]
[358071514,1744689041950,-500.0,0.00017896,2]
[358071516,1744689041960,-500.0,0.00017896,2]
[358071518,1744689041969,-544.78,0.00017896,2]
[358071520,1744689041979,-500.0,0.00017896,2]
[358071522,1744689041989,-500.0,0.00017896,2]
[358071524,1744689041999,-500.0,0.00017896,2]
[358071526,1744689042008,-490.18895488,0.00017896,2]
[358071530,1744689042030,-524.72186931,0.00017895,2]
[358071532,1744689042039,-9.81104512,0.00017896,2]
[358071534,1744689042048,-624.87559417,0.00017896,2]
[358071536,1744689042057,-257.20798552,0.00017896,2]